fUSD/lending_fUSD_20240119
["ID","MTS","AMOUNT","RATE_DAILY","PERIOD"]
[312197306,1705684296641,-807.4,0.00023561,2]
[312197307,1705684296652,-500.0,0.00023561,2]
[312197308,1705684296664,-500.0,0.00023561,2]
[312197309,1705684296675,-190.14,0.00023561,2]
[312197310,1705684296686,-500.0,0.00023561,2]
[312197311,1705684296696,-500.0,0.00023561,2]
[312197312,1705684296706,-1752.26,0.00023561,2]
[312197313,1705684296717,-565.26,0.00023561,2]
[312197314,1705684296728,-500.0,0.00023561,2]
[312197315,1705684296738,-500.0,0.00023561,2]
[312197316,1705684296748,-500.0,0.00023561,2]
[312197317,1705684296758,-500.0,0.00023561,2]
[312197318,1705684296778,-500.0,0.00023561,2]
[312197319,1705684296789,-500.0,0.00023561,2]
[312197320,1705684296800,-500.0,0.00023561,2]
[312197321,1705684296810,-638.62,0.00023561,2]
[312197322,1705684296820,-500.0,0.00023561,2]
[312197323,1705684296831,-500.0,0.00023561,2]
[312197324,1705684296841,-512.8,0.00023561,2]
[312197325,1705684296852,-702.27,0.00023561,2]
[312197326,1705684296862,-546.25,0.00023561,2]
[312197327,1705684296872,-500.0,0.00023561,2]
[312197328,1705684296882,-500.0,0.00023561,2]
[312197329,1705684296892,-500.0,0.00023561,2]
[312197330,1705684296902,-500.0,0.00023561,2]
[312197331,1705684296912,-500.0,0.00023561,2]
[312197332,1705684296922,-500.0,0.00023561,2]
[312197333,1705684296933,-500.0,0.00023561,2]
[312197334,1705684296943,-500.0,0.00023561,2]
[312197335,1705684296953,-500.0,0.00023561,2]
[312197336,1705684296963,-500.0,0.00023561,2]
[312197337,1705684296973,-1045.91,0.00023561,2]
[312197338,1705684296983,-500.0,0.00023561,2]
[312197339,1705684296994,-615.78,0.00023561,2]
[312197340,1705684297004,-546.84,0.00023561,2]
[312197341,1705684297019,-884.67,0.00023561,2]
[312197342,1705684297029,-570.44,0.00023561,2]
[312197343,1705684297044,-679.98,0.00023561,2]
[312197344,1705684297056,-405.82,0.00023561,2]
[312197345,1705684297068,-500.0,0.00023561,2]
[312197346,1705684297078,-500.0,0.00023561,2]
[312197347,1705684297090,-500.0,0.00023561,2]
[312197348,1705684297101,-500.0,0.00023561,2]
[312197349,1705684297112,-500.0,0.00023561,2]
[312197350,1705684297124,-500.0,0.00023561,2]
[312197351,1705684297134,-500.0,0.00023561,2]
[312197352,1705684297144,-500.0,0.00023561,2]
[312197353,1705684297154,-602.03,0.00023561,2]
[312197354,1705684297164,-500.0,0.00023561,2]
[312197355,1705684297174,-1736.83,0.00023561,2]
[312197356,1705684297185,-715.58,0.00023561,2]
[312197357,1705684297195,-500.0,0.00023561,2]
[312197358,1705684297206,-582.03,0.00023561,2]
[312197359,1705684297216,-648.18,0.00023561,2]
[312197360,1705684297227,-581.09,0.00023561,2]
[312197361,1705684297237,-469.91,0.00023561,2]
[312197362,1705684297247,-500.0,0.00023561,2]
[312197363,1705684297257,-588.13,0.00023561,2]
[312197364,1705684297274,-800.73,0.00023561,2]
[312197365,1705684297285,-524.92,0.00023561,2]
[312197366,1705684297296,-500.0,0.00023561,2]
[312197367,1705684297306,-500.0,0.00023561,2]
[312197368,1705684297316,-729.35,0.00023561,2]
[312197369,1705684297326,-798.17,0.00023561,2]
[312197370,1705684297336,-510.07,0.00023561,2]
[312197371,1705684297346,-500.0,0.00023561,2]
[312197372,1705684297356,-500.0,0.00023561,2]
[312197373,1705684297367,-594.92,0.00023561,2]
[312197374,1705684297377,-789.92,0.00023561,2]
[312197375,1705684297387,-500.0,0.00023561,2]
[312197376,1705684297399,-500.0,0.00023561,2]
[312197377,1705684297410,-500.0,0.00023561,2]
[312197378,1705684297421,-500.0,0.00023561,2]
[312197379,1705684297432,-500.0,0.00023561,2]
[312197380,1705684297442,-500.0,0.00023561,2]
[312197381,1705684297452,-500.0,0.00023561,2]
[312197382,1705684297462,-500.0,0.00023561,2]
[312197383,1705684297472,-547.54,0.00023561,2]
[312197384,1705684297482,-500.0,0.00023561,2]
[312197385,1705684297492,-500.0,0.00023561,2]
[312197386,1705684297502,-500.0,0.00023561,2]
[312197387,1705684297514,-500.0,0.00023561,2]
[312197388,1705684297524,-500.0,0.00023561,2]
[312197389,1705684297535,-836.55,0.00023561,2]
[312197390,1705684297545,-613.85,0.00023561,2]
[312197391,1705684297809,-500.0,0.00023561,2]
[312197392,1705684297820,-563.98,0.00023561,2]
[312197393,1705684297829,-500.0,0.00023561,2]
[312197394,1705684297839,-500.0,0.00023561,2]
[312197395,1705684297849,-1354.55,0.00023561,2]
[312197396,1705684297859,-500.0,0.00023561,2]
[312197397,1705684297868,-500.0,0.00023561,2]
[312197398,1705684297877,-661.22,0.00023561,2]
[312197399,1705684297887,-500.0,0.00023561,2]
[312197400,1705684297898,-500.0,0.00023561,2]
[312197401,1705684297908,-521.39,0.00023561,2]
[312197402,1705684297918,-649.06,0.00023561,2]
[312197403,1705684297927,-942.15,0.00023561,2]
[312197404,1705684297938,-500.0,0.00023561,2]
[312197405,1705684297948,-500.0,0.00023561,2]
[312197406,1705684297957,-500.0,0.00023561,2]
[312197407,1705684297967,-665.24,0.00023561,2]
[312197408,1705684297976,-509.47,0.00023561,2]
[312197409,1705684297988,-500.0,0.00023561,2]
[312197410,1705684297997,-500.0,0.00023561,2]
[312197411,1705684298007,-567.16,0.00023561,2]
[312197412,1705684298019,-587.72,0.00023561,2]
[312197413,1705684298029,-412.85331669,0.00023561,2]
[312197414,1705684298041,-609.03,0.00023561,2]
[312197415,1705684298051,-500.0,0.00023561,2]
[312197416,1705684298061,-738.2,0.00023561,2]
[312197417,1705684298070,-673.09,0.00023561,2]
[312197418,1705684298079,-1257.45,0.00023561,2]
[312197419,1705684298089,-433.44,0.00023561,2]
[312197420,1705684298098,-673.79,0.00023561,2]
[312197421,1705684298107,-624.73,0.00023561,2]
[312197422,1705684298118,-500.0,0.00023561,2]
[312197423,1705684298128,-500.0,0.00023561,2]
[312197424,1705684298137,-518.0,0.00023561,2]
[312197425,1705684298147,-500.0,0.00023561,2]
[312197426,1705684298156,-500.0,0.00023561,2]
[312197427,1705684298165,-366.76,0.00023561,2]
[312197428,1705684298175,-500.0,0.00023561,2]
[312197429,1705684298184,-634.3,0.00023561,2]
[312197430,1705684298195,-500.0,0.00023561,2]
[312197431,1705684298204,-500.0,0.00023561,2]
[312197432,1705684298215,-500.0,0.00023561,2]
[312197433,1705684298226,-500.0,0.00023561,2]
[312197434,1705684298235,-500.0,0.00023561,2]
[312197435,1705684298245,-821.92,0.00023561,2]
[312197436,1705684298254,-572.76157269,0.00023561,2]
[312197437,1705684298264,-500.0,0.00023561,2]
[312197438,1705684298273,-500.0,0.00023561,2]
[312197439,1705684298283,-500.0,0.00023561,2]
[312197440,1705684298293,-673.61,0.00023561,2]
[312197441,1705684298302,-500.0,0.00023561,2]
[312197442,1705684298312,-500.0,0.00023561,2]
[312197443,1705684298321,-500.0,0.00023561,2]
[312197444,1705684298330,-522.51,0.00023561,2]
[312197445,1705684298340,-799.17,0.00023561,2]
[312197446,1705684298349,-543.84,0.00023561,2]
[312197447,1705684298358,-862.29,0.00023561,2]
[312197448,1705684298368,-500.0,0.00023561,2]
[312197449,1705684298377,-539.84,0.00023561,2]
[312197450,1705684298388,-500.0,0.00023561,2]
[312197451,1705684298397,-500.0,0.00023561,2]
[312197452,1705684298407,-500.0,0.00023561,2]
[312197453,1705684298416,-903.19,0.00023561,2]
[312197454,1705684298426,-720.59,0.00023561,2]
[312197455,1705684298436,-186.4,0.00023561,2]
[312197456,1705684298446,-790.36,0.00023561,2]
[312197457,1705684298455,-224.04888854,0.00023561,2]
[312197458,1705684298466,-500.0,0.00023561,2]
[312197459,1705684298476,-500.0,0.00023561,2]
[312197460,1705684298485,-934.67,0.00023561,2]
[312197461,1705684298496,-1004.82,0.00023561,2]
[312197462,1705684298506,-500.0,0.00023561,2]
[312197463,1705684298516,-718.68,0.00023561,2]
[312197464,1705684298525,-500.0,0.00023561,2]
[312197465,1705684298536,-2888.65,0.00023561,2]
[312197466,1705684298546,-155.44,0.00023561,2]
[312197467,1705684298555,-751.55,0.00023561,2]
[312197468,1705684298566,-767.72,0.00023561,2]
[312197469,1705684298577,-500.0,0.00023561,2]
[312197470,1705684298586,-500.0,0.00023561,2]
[312197471,1705684298597,-1564.8,0.00023561,2]
[312197472,1705684298607,-500.0,0.00023561,2]
[312197473,1705684298617,-553.54,0.00023561,2]
[312197474,1705684298626,-2087.23,0.00023561,2]
[312197475,1705684298635,-635.0,0.00023561,2]
[312197476,1705684298646,-779.44,0.00023561,2]
[312197477,1705684298655,-692.16,0.00023561,2]
[312197478,1705684298665,-273.92,0.00023561,2]
[312197479,1705684298675,-776.21,0.00023561,2]
[312197480,1705684298685,-801.0,0.00023561,2]
[312197481,1705684298695,-2489.47,0.00023561,2]
[312197482,1705684298704,-1305.59,0.00023561,2]
[312197483,1705684298714,-500.0,0.00023561,2]
[312197484,1705684298724,-540.08,0.00023561,2]
[312197485,1705684298733,-657.66,0.00023561,2]
[312197486,1705684298743,-3922.54,0.00023561,2]
[312197487,1705684298753,-500.0,0.00023561,2]
[312197488,1705684298762,-505.87592094,0.00023561,2]
[312197489,1705684298775,-500.0,0.00023561,2]
[312197490,1705684298785,-321.74446394,0.00023561,2]
[312197491,1705684298795,-500.0,0.00023561,2]
[312197492,1705684298805,-500.0,0.00023561,2]
[312197493,1705684298814,-500.0,0.00023561,2]
[312197494,1705684298824,-500.0,0.00023561,2]
[312197495,1705684298833,-500.0,0.00023561,2]
[312197496,1705684298844,-1067.45,0.00023561,5]
[312197497,1705684298853,-500.0,0.00023561,2]
[312197498,1705684298863,-2955.88,0.00023561,2]
[312197499,1705684298872,-574.27,0.00023561,2]
[312197500,1705684298881,-2247.96,0.00023561,2]
[312197501,1705684298891,-4625.17,0.00023561,2]
[312197502,1705684298901,-500.0,0.00023561,2]
[312197503,1705684298912,-500.0,0.00023561,2]
[312197504,1705684298922,-500.0,0.00023561,2]
[312197505,1705684298932,-500.0,0.00023561,2]
[312197506,1705684298941,-500.0,0.00023561,2]
[312197507,1705684298951,-792.41,0.00023561,2]
[312197508,1705684298961,-500.0,0.00023561,2]
[312197509,1705684298970,-387.24,0.00023561,2]
[312197510,1705684298979,-3375.04,0.00023561,2]
[312197511,1705684298989,-1145.18,0.00023561,2]
[312197512,1705684298998,-1482.95,0.00023561,2]
[312197513,1705684299009,-3968.6,0.00023561,2]
[312197514,1705684299024,-642.03,0.00023561,2]
[312197515,1705684299033,-759.02,0.00023561,2]
[312197516,1705684299047,-500.0,0.00023561,2]
[312197517,1705684299057,-519.9,0.00023561,2]
[312197518,1705684299067,-1025.72,0.00023561,2]
[312197519,1705684299077,-2480.63,0.00023561,2]
[312197520,1705684299087,-733.85,0.00023561,2]
[312197521,1705684299097,-3098.92,0.00023561,2]
[312197522,1705684299106,-500.0,0.00023561,2]
[312197523,1705684299118,-500.0,0.00023561,2]
[312197524,1705684299128,-6021.86,0.00023561,2]
[312197525,1705684299138,-753.94,0.00023561,2]
[312197526,1705684299147,-500.0,0.00023561,2]
[312197527,1705684299157,-500.0,0.00023561,2]
[312197528,1705684299166,-978.79,0.00023561,2]
[312197529,1705684299176,-500.0,0.00023561,2]
[312197530,1705684299185,-4921.79,0.00023561,2]
[312197531,1705684299195,-8646.25,0.00023561,2]
[312197532,1705684299204,-682.8,0.00023561,2]
[312197533,1705684299213,-500.0,0.00023561,2]
[312197534,1705684299223,-1163.38,0.00023561,2]
[312197535,1705684299233,-500.0,0.00023561,2]
[312197536,1705684299243,-500.0,0.00023561,2]
[312197537,1705684299253,-500.0,0.00023561,2]
[312197538,1705684299266,-500.0,0.00023561,2]
[312197539,1705684299275,-2479.77,0.00023561,2]
[312197540,1705684299284,-500.0,0.00023561,2]
[312197541,1705684299295,-805.35,0.00023561,2]
[312197542,1705684299304,-1096.89,0.00023561,2]
[312197543,1705684299314,-846.06,0.00023561,2]
[312197544,1705684299324,-362.24,0.00023561,2]
[312197545,1705684299334,-500.0,0.00023561,2]
[312197546,1705684299344,-522.24,0.00023561,2]
[312197547,1705684299354,-1247.86,0.00023561,2]
[312197548,1705684299364,-1521.64,0.00023561,2]
[312197549,1705684299375,-810.2,0.00023561,2]
[312197550,1705684299385,-1270.75,0.00023561,2]
[312197551,1705684299395,-500.0,0.00023561,2]
[312197552,1705684299404,-500.0,0.00023561,2]
[312197553,1705684299414,-648.61,0.00023561,2]
[312197554,1705684299424,-1375.2,0.00023561,2]
[312197555,1705684299434,-1158.73,0.00023561,2]
[312197556,1705684299444,-17751.82,0.00023561,2]
[312197557,1705684299455,-500.0,0.00023561,2]
[312197558,1705684299466,-503.19,0.00023561,2]
[312197559,1705684299476,-1097.0,0.00023561,2]
[312197560,1705684299486,-918.43,0.00023561,2]
[312197561,1705684299496,-1690.88,0.00023561,2]
[312197562,1705684299506,-298.88,0.00023561,2]
[312197563,1705684299520,-1798.17,0.00023561,2]
[312197564,1705684299531,-1931.87,0.00023561,2]
[312197565,1705684299541,-662.05,0.00023561,2]
[312197566,1705684299551,-820.42,0.00023561,2]
[312197567,1705684299562,-500.0,0.00023561,2]
[312197568,1705684299572,-1315.74,0.00023561,2]
[312197569,1705684299582,-2334.22,0.00023561,2]
[312197570,1705684299591,-500.0,0.00023561,2]
[312197571,1705684299601,-500.0,0.00023561,2]
[312197572,1705684299611,-2683.86,0.00023561,2]
[312197573,1705684299621,-759.51,0.00023561,2]
[312197574,1705684299633,-1614.07,0.00023561,2]
[312197575,1705684299643,-4770.94,0.00023561,2]
[312197576,1705684299653,-500.0,0.00023561,2]
[312197577,1705684299663,-1303.95,0.00023561,2]
[312197578,1705684299673,-658.2,0.00023561,2]
[312197579,1705684299683,-500.0,0.00023561,2]
[312197580,1705684299696,-500.0,0.00023561,2]
[312197581,1705684299706,-500.0,0.00023561,2]
[312197582,1705684299717,-500.0,0.00023561,2]
[312197583,1705684299727,-695.99,0.00023561,2]
[312197584,1705684299737,-8690.7,0.00023561,2]
[312197585,1705684299747,-6873.67,0.00023561,2]
[312197586,1705684299757,-491.64,0.00023561,2]
[312197587,1705684299770,-500.0,0.00023561,2]
[312197588,1705684299779,-449.12363228,0.00023561,2]
[312197589,1705684299789,-519.42,0.00023561,2]
[312197590,1705684299800,-1295.46,0.00023561,2]
[312197591,1705684299809,-1149.53,0.00023561,2]
[312197592,1705684299819,-500.0,0.00023561,2]
[312197593,1705684299829,-500.0,0.00023561,2]
[312197594,1705684299839,-500.0,0.00023561,2]
[312197595,1705684299848,-870.11,0.00023561,2]
[312197596,1705684299858,-500.0,0.00023561,2]
[312197597,1705684299870,-500.0,0.00023561,2]
[312197598,1705684299880,-1617.17,0.00023561,2]
[312197599,1705684299890,-753.21,0.00023561,2]
[312197600,1705684299899,-500.0,0.00023561,2]
[312197601,1705684299909,-320.91757408,0.00023561,2]
[312197602,1705684299918,-500.0,0.00023561,2]
[312197603,1705684299928,-1344.83,0.00023561,2]
[312197604,1705684299937,-763.08,0.00023561,2]
[312197605,1705684299947,-982.23,0.00023561,2]
[312197606,1705684299956,-569.27,0.00023561,2]
[312197607,1705684299965,-500.0,0.00023561,2]
[312197608,1705684299976,-597.5,0.00023561,2]
[312197609,1705684299985,-512.26,0.00023561,2]
[312197610,1705684299995,-742.83,0.00023561,2]
[312197611,1705684300005,-500.0,0.00023561,2]
[312197612,1705684300017,-499.96,0.00023561,2]
[312197613,1705684300027,-2112.76,0.00023561,2]
[312197614,1705684300038,-4987.06,0.00023561,2]
[312197615,1705684300051,-1184.32,0.00023561,2]
[312197616,1705684300061,-500.0,0.00023561,2]
[312197617,1705684300070,-2960.59,0.00023561,2]
[312197618,1705684300081,-500.0,0.00023561,2]
[312197619,1705684300090,-15338.55,0.00023561,2]
[312197620,1705684300099,-500.0,0.00023561,2]
[312197621,1705684300108,-594.36,0.00023561,2]
[312197622,1705684300118,-500.0,0.00023561,2]
[312197623,1705684300128,-500.0,0.00023561,2]
[312197624,1705684300137,-2307.01,0.00023561,2]
[312197625,1705684300147,-2166.93,0.00023561,2]
[312197626,1705684300236,-500.0,0.00023561,2]
[312197627,1705684300245,-1238.0,0.00023561,2]
[312197628,1705684300255,-582.28,0.00023561,2]
[312197629,1705684300265,-1682.88,0.00023561,2]
[312197630,1705684300275,-861.16,0.00023561,2]
[312197631,1705684300285,-970.11,0.00023561,2]
[312197632,1705684300295,-1309.07,0.00023561,2]
[312197633,1705684300304,-687.38,0.00023561,2]
[312197634,1705684300314,-500.0,0.00023561,2]
[312197635,1705684300323,-500.0,0.00023561,2]
[312197636,1705684300333,-500.0,0.00023561,2]
[312197637,1705684300342,-966.15,0.00023561,2]
[312197638,1705684300351,-1452.73,0.00023561,2]
[312197639,1705684300362,-543.77,0.00023561,2]
[312197640,1705684300371,-687.66,0.00023561,2]
[312197641,1705684300380,-789.87,0.00023561,2]
[312197642,1705684300390,-1600.24,0.00023561,2]
[312197643,1705684300400,-580.5,0.00023561,2]
[312197644,1705684300410,-724.98,0.00023561,2]
[312197645,1705684300421,-566.64,0.00023561,2]
[312197646,1705684300432,-500.0,0.00023561,2]
[312197647,1705684300444,-500.0,0.00023561,2]
[312197648,1705684300454,-500.0,0.00023561,2]
[312197649,1705684300464,-500.0,0.00023561,2]
[312197650,1705684300474,-2353.38,0.00023561,2]
[312197651,1705684300483,-1472.8,0.00023561,2]
[312197652,1705684300492,-500.0,0.00023561,2]
[312197653,1705684300501,-982.82,0.00023561,2]
[312197654,1705684300512,-1029.65,0.00023561,2]
[312197655,1705684300525,-500.0,0.00023561,2]
[312197656,1705684300536,-500.0,0.00023561,2]
[312197657,1705684300545,-1034.15,0.00023561,2]
[312197658,1705684300554,-1105.06,0.00023561,2]
[312197659,1705684300564,-500.0,0.00023561,2]
[312197660,1705684300574,-511.82,0.00023561,2]
[312197661,1705684300583,-2707.99,0.00023561,2]
[312197662,1705684300593,-1045.7,0.00023561,2]
[312197663,1705684300602,-1777.84,0.00023561,2]
[312197664,1705684300611,-536.83,0.00023561,2]
[312197665,1705684300622,-10382.29,0.00023561,2]
[312197666,1705684300631,-1339.3,0.00023561,2]
[312197667,1705684300641,-907.28,0.00023561,2]
[312197668,1705684300650,-500.0,0.00023561,2]
[312197669,1705684300659,-500.0,0.00023561,2]
[312197670,1705684300669,-500.0,0.00023561,2]
[312197671,1705684300678,-500.0,0.00023561,2]
[312197672,1705684300687,-1150.48,0.00023561,2]
[312197673,1705684300697,-3979.15,0.00023561,2]
[312197674,1705684300707,-1514.36,0.00023561,2]
[312197675,1705684300716,-524.59,0.00023561,2]
[312197676,1705684300726,-778.28,0.00023561,2]
[312197677,1705684300735,-500.0,0.00023561,2]
[312197678,1705684300744,-165.08141392,0.00023561,2]
[312197679,1705684300754,-5877.42,0.00023561,2]
[312197680,1705684300763,-848.6,0.00023561,2]
[312197681,1705684300776,-963.32,0.00023561,2]
[312197682,1705684300786,-733.77,0.00023561,2]
[312197683,1705684300796,-635.87,0.00023561,2]
[312197684,1705684300805,-500.0,0.00023561,2]
[312197685,1705684300815,-2258.64,0.00023561,2]
[312197686,1705684300824,-689.61,0.00023561,2]
[312197687,1705684300833,-3018.83,0.00023561,2]
[312197688,1705684300842,-649.04,0.00023561,2]
[312197689,1705684300851,-906.51,0.00023561,2]
[312197690,1705684300860,-151.0,0.00023561,7]
[312197691,1705684300870,-168.17866,0.00023561,7]
[312197692,1705684300878,-168.178667,0.00023561,7]
[312197693,1705684300888,-151.0,0.00023561,7]
[312197694,1705684300897,-500.0,0.00023562,2]
[312197695,1705684300906,-25416.8517608,0.00023564,2]
[312197696,1705684300915,-701.7479012,0.00023564,2]
[312197697,1705684300924,-455.87141,0.00023564,2]
[312197698,1705684300934,-6400.4423893,0.00023592,2]
[312197699,1705684300944,-150.0,0.00023608,2]
[312197700,1705684300954,-150.0,0.00023611,2]
[312197701,1705684300964,-658.4,0.00023643,2]
[312197702,1705684300974,-711.29,0.00023683,2]
[312197703,1705684300983,-150.0,0.00023689,2]
[312197704,1705684300992,-150.0,0.00023717,2]
[312197705,1705684301002,-150.0,0.00023749,2]
[312197706,1705684301013,-150.0,0.00023762,2]
[312197707,1705684301028,-309.51,0.000238,2]
[312197708,1705684301038,-1000.0,0.000238,2]
[312197709,1705684301050,-1000.0,0.000238,2]
[312197710,1705684301059,-1000.0,0.000238,2]
[312197711,1705684301068,-1000.0,0.000238,2]
[312197712,1705684301077,-1000.0,0.000238,2]
[312197713,1705684301091,-1000.0,0.000238,2]
[312197714,1705684301100,-1000.0,0.000238,2]
[312197715,1705684301109,-1000.0,0.000238,2]
[312197716,1705684301120,-1000.0,0.000238,2]
[312197717,1705684301129,-1000.0,0.000238,2]
[312197718,1705684301139,-1000.0,0.000238,2]
[312197719,1705684301150,-1000.0,0.000238,2]
[312197720,1705684301159,-1000.0,0.000238,2]
[312197721,1705684301168,-1000.0,0.000238,2]
[312197722,1705684301177,-1000.0,0.000238,2]
[312197723,1705684301186,-1000.0,0.000238,2]
[312197724,1705684301196,-1000.0,0.000238,2]
[312197725,1705684301206,-458.9,0.000238,2]
[312197726,1705684301215,-250.0,0.000238,2]
[312197727,1705684301225,-1500.0,0.000238,2]
[312197728,1705684301236,-215.6021794,0.000238,2]
[312197729,1705684301245,-158.68816156,0.00023834,2]
[312197730,1705684301254,-622.14,0.00023835,2]
[312197731,1705684301264,-500.0,0.00023835,2]
[312197732,1705684301277,-500.0,0.00023835,2]
[312197733,1705684301286,-337.47576032,0.00023835,2]
[312197734,1705684301297,-368.12578628,0.00023835,2]
[312197735,1705684301306,-500.0,0.00023835,2]
[312197736,1705684301315,-500.0,0.00023835,2]
[312197737,1705684301324,-500.0,0.00023835,2]
[312197738,1705684301333,-542.14,0.00023835,2]
[312197739,1705684301342,-500.0,0.00023835,2]
[312197740,1705684301351,-500.0,0.00023835,2]
[312197741,1705684301360,-500.0,0.00023835,2]
[312197742,1705684301371,-500.0,0.00023835,2]
[312197743,1705684301379,-500.0,0.00023835,2]
[312197744,1705684301390,-500.0,0.00023835,2]
[312197745,1705684301399,-542.59,0.00023835,2]
[312197746,1705684301408,-500.0,0.00023835,2]
[312197747,1705684301417,-730.0,0.00023835,2]
[312197748,1705684301427,-500.0,0.00023835,2]
[312197749,1705684301437,-500.0,0.00023835,2]
[312197750,1705684301446,-288.12,0.00023835,2]
[312197751,1705684301456,-528.39,0.00023835,2]
[312197752,1705684301465,-542.09,0.00023835,2]
[312197753,1705684301474,-500.0,0.00023835,2]
[312197754,1705684301484,-500.0,0.00023835,2]
[312197755,1705684301493,-676.04,0.00023835,2]
[312197756,1705684301503,-191.8916641,0.00023835,2]
[312197757,1705684301513,-500.0,0.00023835,2]
[312197758,1705684301528,-500.0,0.00023835,2]
[312197759,1705684301537,-500.0,0.00023835,2]
[312197760,1705684301547,-808.53,0.00023835,2]
[312197761,1705684301557,-500.0,0.00023835,2]
[312197762,1705684301566,-500.0,0.00023835,2]
[312197763,1705684301575,-544.1,0.00023835,2]
[312197764,1705684301584,-500.0,0.00023835,2]
[312197765,1705684301594,-500.0,0.00023835,2]
[312197766,1705684301603,-500.0,0.00023835,2]
[312197767,1705684301613,-513.9,0.00023835,2]
[312197768,1705684301622,-807.4,0.00023835,2]
[312197769,1705684301634,-500.0,0.00023835,2]
[312197770,1705684301643,-500.0,0.00023835,2]
[312197771,1705684301652,-500.0,0.00023835,2]
[312197772,1705684301661,-500.0,0.00023835,2]
[312197773,1705684301671,-1752.26,0.00023835,2]
[312197774,1705684301680,-565.26,0.00023835,2]
[312197775,1705684301689,-500.0,0.00023835,2]
[312197776,1705684301698,-500.0,0.00023835,2]
[312197777,1705684301710,-500.0,0.00023835,2]
[312197778,1705684301719,-500.0,0.00023835,2]
[312197779,1705684301728,-500.0,0.00023835,2]
[312197780,1705684301737,-500.0,0.00023835,2]
[312197781,1705684301746,-500.0,0.00023835,2]
[312197782,1705684301755,-638.62,0.00023835,2]
[312197783,1705684301764,-500.0,0.00023835,2]
[312197784,1705684301778,-500.0,0.00023835,2]
[312197785,1705684301788,-702.27,0.00023835,2]
[312197786,1705684301799,-546.25,0.00023835,2]
[312197787,1705684301808,-500.0,0.00023835,2]
[312197788,1705684301817,-500.0,0.00023835,2]
[312197789,1705684301826,-500.0,0.00023835,2]
[312197790,1705684301836,-500.0,0.00023835,2]
[312197791,1705684301845,-500.0,0.00023835,2]
[312197792,1705684301854,-500.0,0.00023835,2]
[312197793,1705684301863,-500.0,0.00023835,2]
[312197794,1705684301873,-488.95422952,0.00023835,2]
[312197795,1705684301882,-500.0,0.00023835,2]
[312197796,1705684301892,-500.0,0.00023835,2]
[312197797,1705684301902,-1045.91,0.00023835,2]
[312197798,1705684301911,-500.0,0.00023835,2]
[312197799,1705684301920,-615.78,0.00023835,2]
[312197800,1705684301929,-546.84,0.00023835,2]
[312197801,1705684301938,-884.67,0.00023835,2]
[312197802,1705684301947,-679.98,0.00023835,2]
[312197803,1705684301958,-500.0,0.00023835,2]
[312197804,1705684301969,-500.0,0.00023835,2]
[312197805,1705684301978,-476.16,0.00023835,2]